Workbook

Sheet E jeugd voorronde
A1: Schoonhoven E TOERNOOI 2014 | AY1: =COUNTA(U12:W17) -> 18 | AZ1: =COUNTA(AT12:AV17) -> 18 | BA1: =COUNTA(U20:W25) -> 18 | BB1: =COUNTA(AT20:AV25) -> 18 | BJ1: =VALUE(A6) -> 4 | BK1: =B6 -> Schoonhoven E1 | BL1: =VALUE(O6) -> 2 | BM1: =P6 -> Schoonhoven E3 | BN1: =VALUE(AD6) -> 4 | BO1: =AE6 -> Schoonhoven E5 | BP1: =VALUE(AR6) -> 3 | BQ1: =AS6 -> Schoonhoven E7
BJ2: =VALUE(A7) -> 1 | BK2: =B7 -> Cabauw E1 | BL2: =VALUE(O7) -> 1 | BM2: =P7 -> Cabauw E2 | BN2: =VALUE(AD7) -> 3 | BO2: =AE7 -> Lekkerkerk E2 | BP2: =VALUE(AR7) -> 4 | BQ2: =AS7 -> Stolwijk E2
A3: Stand | K3: Gewonnen | L3: Gelijk | M3: Verloren | N3: Saldo | O3: Stand | Z3: Gewonnen | AA3: Gelijk | AB3: Verloren | AC3: Saldo | AD3: Stand | AN3: Gewonnen | AO3: Gelijk | AP3: Verloren | AQ3: Saldo | AR3: Stand | BB3: Gewonnen | BC3: Gelijk | BD3: Verloren | BE3: Saldo | BJ3: =VALUE(A8) -> 2 | BK3: =B8 -> Jodan Boys E2 | BL3: =VALUE(O8) -> 4 | BM3: =P8 -> RKDEO E3 | BN3: =VALUE(AD8) -> 1 | BO3: =AE8 -> RKDEO E9 | BP3: =VALUE(AR8) -> 1 | BQ3: =AS8 -> VFC Vlaardingen E8
BJ4: =VALUE(A9) -> 3 | BK4: =B9 -> Alblasserdam E1 | BL4: =VALUE(O9) -> 3 | BM4: =P9 -> VV GZ E3 | BN4: =VALUE(AD9) -> 2 | BO4: =AE9 -> scVictorie'04 E3 | BP4: =VALUE(AR9) -> 2 | BQ4: =AS9 -> Jodan Boys E8
B5: Groep 1 | H5: V | I5: T | J5: P | P5: Groep 2 | W5: V | X5: T | Y5: P | AE5: Groep 3 | AK5: V | AL5: T | AM5: P | AS5: Groep 4 | AY5: V | AZ5: T | BA5: P
A6: =RANK(J6,$J$6:$J$9,0) -> 4 | B6: Schoonhoven E1 | H6: =SUMIF($G$12:$L$17,B6,$U$12:$U$17)+SUMIF($N$12:$S$17,B6,$W$12:$W$17) -> 4 | I6: =SUMIF($G$12:$L$17,B6,$W$12:$W$17)+SUMIF($N$12:$S$17,B6,$U$12:$U$17) -> 5 | J6: =(K6*3)+L6+(H6*0.001)-(I6*0.001) -> 2.999 | K6: =SUMPRODUCT(($G$12:$L$17=B6)*($Y$12:$Y$17=3))+SUMPRODUCT(($N$12:$S$17=B6)*($AA$12:$AA$17=3)) -> 1 | L6: =SUMPRODUCT(($G$12:$L$17=B6)*($Y$12:$Y$17=1))+SUMPRODUCT(($N$12:$S$17=B6)*($AA$12:$AA$17=1)) -> 0 | M6: =SUMPRODUCT(($G$12:$L$17=B6)*($Y$12:$Y$17=0))+SUMPRODUCT(($N$12:$S$17=B6)*($AA$12:$AA$17=0)) -> 2 | N6: =H6-I6 -> -1 | O6: =RANK(Y6,$Y$6:$Y$9,0) -> 2 | P6: Schoonhoven E3 | W6: =SUMIF($AF$12:$AK$17,P6,$AT$12:$AT$17)+SUMIF($AM$12:$AR$17,P6,$AV$12:$AV$17) -> 4 | X6: =SUMIF($AF$12:$AK$17,P6,$AV$12:$AV$17)+SUMIF($AM$12:$AR$17,P6,$AT$12:$AT$17) -> 5 | Y6: =(Z6*3)+AA6+(W6*0.001)-(X6*0.001) -> 3.999 | Z6: =SUMPRODUCT(($AF$12:$AK$17=P6)*($AX$12:$AX$17=3))+SUMPRODUCT(($AM$12:$AR$17=P6)*($AZ$12:$AZ$17=3)) -> 1 | AA6: =SUMPRODUCT(($AF$12:$AK$17=P6)*($AX$12:$AX$17=1))+SUMPRODUCT(($AM$12:$AR$17=P6)*($AZ$12:$AZ$17=1)) -> 1 | AB6: =SUMPRODUCT(($AF$12:$AK$17=P6)*($AX$12:$AX$17=0))+SUMPRODUCT(($AM$12:$AR$17=P6)*($AZ$12:$AZ$17=0)) -> 1 | AC6: =W6-X6 -> -1 | AD6: =RANK(AM6,$AM$6:$AM$9,0) -> 4 | AE6: Schoonhoven E5 | AK6: =SUMIF($G$20:$L$25,AE6,$U$20:$U$25)+SUMIF($N$20:$S$25,AE6,$W$20:$W$25) -> 1 | AL6: =SUMIF($G$20:$L$25,AE6,$W$20:$W$25)+SUMIF($N$20:$S$25,AE6,$U$20:$U$25) -> 7 | AM6: =(AN6*3)+AO6+(AK6*0.001)-(AL6*0.001) -> 0.994 | AN6: =SUMPRODUCT(($G$20:$L$25=AE6)*($Y$20:$Y$25=3))+SUMPRODUCT(($N$20:$S$25=AE6)*($AA$20:$AA$25=3)) -> 0 | AO6: =SUMPRODUCT(($G$20:$L$25=AE6)*($Y$20:$Y$25=1))+SUMPRODUCT(($N$20:$S$25=AE6)*($AA$20:$AA$25=1)) -> 1 | AP6: =SUMPRODUCT(($G$20:$L$25=AE6)*($Y$20:$Y$25=0))+SUMPRODUCT(($N$20:$S$25=AE6)*($AA$20:$AA$25=0)) -> 2 | AQ6: =AK6-AL6 -> -6 | AR6: =RANK(BA6,$BA$6:$BA$9,0) -> 3 | AS6: Schoonhoven E7 | AY6: =SUMIF($AF$20:$AK$25,AS6,$AT$20:$AT$25)+SUMIF($AM$20:$AR$25,AS6,$AV$20:$AV$25) -> 3 | AZ6: =SUMIF($AF$20:$AK$25,AS6,$AV$20:$AV$25)+SUMIF($AM$20:$AR$25,AS6,$AT$20:$AT$25) -> 4 | BA6: =(BB6*3)+BC6+(AY6*0.001)-(AZ6*0.001) -> 1.999 | BB6: =SUMPRODUCT(($AF$20:$AK$25=AS6)*($AX$20:$AX$25=3))+SUMPRODUCT(($AM$20:$AR$25=AS6)*($AZ$20:$AZ$25=3)) -> 0 | BC6: =SUMPRODUCT(($AF$20:$AK$25=AS6)*($AX$20:$AX$25=1))+SUMPRODUCT(($AM$20:$AR$25=AS6)*($AZ$20:$AZ$25=1)) -> 2 | BD6: =SUMPRODUCT(($AF$20:$AK$25=AS6)*($AX$20:$AX$25=0))+SUMPRODUCT(($AM$20:$AR$25=AS6)*($AZ$20:$AZ$25=0)) -> 1 | BE6: =AY6-AZ6 -> -1
A7: =RANK(J7,$J$6:$J$9,0) -> 1 | B7: Cabauw E1 | H7: =SUMIF($G$12:$L$17,B7,$U$12:$U$17)+SUMIF($N$12:$S$17,B7,$W$12:$W$17) -> 9 | I7: =SUMIF($G$12:$L$17,B7,$W$12:$W$17)+SUMIF($N$12:$S$17,B7,$U$12:$U$17) -> 8 | J7: =(K7*3)+L7+(H7*0.001)-(I7*0.001) -> 6.001 | K7: =SUMPRODUCT(($G$12:$L$17=B7)*($Y$12:$Y$17=3))+SUMPRODUCT(($N$12:$S$17=B7)*($AA$12:$AA$17=3)) -> 2 | L7: =SUMPRODUCT(($G$12:$L$17=B7)*($Y$12:$Y$17=1))+SUMPRODUCT(($N$12:$S$17=B7)*($AA$12:$AA$17=1)) -> 0 | M7: =SUMPRODUCT(($G$12:$L$17=B7)*($Y$12:$Y$17=0))+SUMPRODUCT(($N$12:$S$17=B7)*($AA$12:$AA$17=0)) -> 1 | N7: =H7-I7 -> 1 | O7: =RANK(Y7,$Y$6:$Y$9,0) -> 1 | P7: Cabauw E2 | W7: =SUMIF($AF$12:$AK$17,P7,$AT$12:$AT$17)+SUMIF($AM$12:$AR$17,P7,$AV$12:$AV$17) -> 6 | X7: =SUMIF($AF$12:$AK$17,P7,$AV$12:$AV$17)+SUMIF($AM$12:$AR$17,P7,$AT$12:$AT$17) -> 3 | Y7: =(Z7*3)+AA7+(W7*0.001)-(X7*0.001) -> 7.003 | Z7: =SUMPRODUCT(($AF$12:$AK$17=P7)*($AX$12:$AX$17=3))+SUMPRODUCT(($AM$12:$AR$17=P7)*($AZ$12:$AZ$17=3)) -> 2 | AA7: =SUMPRODUCT(($AF$12:$AK$17=P7)*($AX$12:$AX$17=1))+SUMPRODUCT(($AM$12:$AR$17=P7)*($AZ$12:$AZ$17=1)) -> 1 | AB7: =SUMPRODUCT(($AF$12:$AK$17=P7)*($AX$12:$AX$17=0))+SUMPRODUCT(($AM$12:$AR$17=P7)*($AZ$12:$AZ$17=0)) -> 0 | AC7: =W7-X7 -> 3 | AD7: =RANK(AM7,$AM$6:$AM$9,0) -> 3 | AE7: Lekkerkerk E2 | AK7: =SUMIF($G$20:$L$25,AE7,$U$20:$U$25)+SUMIF($N$20:$S$25,AE7,$W$20:$W$25) -> 4 | AL7: =SUMIF($G$20:$L$25,AE7,$W$20:$W$25)+SUMIF($N$20:$S$25,AE7,$U$20:$U$25) -> 4 | AM7: =(AN7*3)+AO7+(AK7*0.001)-(AL7*0.001) -> 3 | AN7: =SUMPRODUCT(($G$20:$L$25=AE7)*($Y$20:$Y$25=3))+SUMPRODUCT(($N$20:$S$25=AE7)*($AA$20:$AA$25=3)) -> 1 | AO7: =SUMPRODUCT(($G$20:$L$25=AE7)*($Y$20:$Y$25=1))+SUMPRODUCT(($N$20:$S$25=AE7)*($AA$20:$AA$25=1)) -> 0 | AP7: =SUMPRODUCT(($G$20:$L$25=AE7)*($Y$20:$Y$25=0))+SUMPRODUCT(($N$20:$S$25=AE7)*($AA$20:$AA$25=0)) -> 2 | AQ7: =AK7-AL7 -> 0 | AR7: =RANK(BA7,$BA$6:$BA$9,0) -> 4 | AS7: Stolwijk E2 | AY7: =SUMIF($AF$20:$AK$25,AS7,$AT$20:$AT$25)+SUMIF($AM$20:$AR$25,AS7,$AV$20:$AV$25) -> 2 | AZ7: =SUMIF($AF$20:$AK$25,AS7,$AV$20:$AV$25)+SUMIF($AM$20:$AR$25,AS7,$AT$20:$AT$25) -> 5 | BA7: =(BB7*3)+BC7+(AY7*0.001)-(AZ7*0.001) -> 0.997 | BB7: =SUMPRODUCT(($AF$20:$AK$25=AS7)*($AX$20:$AX$25=3))+SUMPRODUCT(($AM$20:$AR$25=AS7)*($AZ$20:$AZ$25=3)) -> 0 | BC7: =SUMPRODUCT(($AF$20:$AK$25=AS7)*($AX$20:$AX$25=1))+SUMPRODUCT(($AM$20:$AR$25=AS7)*($AZ$20:$AZ$25=1)) -> 1 | BD7: =SUMPRODUCT(($AF$20:$AK$25=AS7)*($AX$20:$AX$25=0))+SUMPRODUCT(($AM$20:$AR$25=AS7)*($AZ$20:$AZ$25=0)) -> 2 | BE7: =AY7-AZ7 -> -3
A8: =RANK(J8,$J$6:$J$9,0) -> 2 | B8: Jodan Boys E2 | H8: =SUMIF($G$12:$L$17,B8,$U$12:$U$17)+SUMIF($N$12:$S$17,B8,$W$12:$W$17) -> 5 | I8: =SUMIF($G$12:$L$17,B8,$W$12:$W$17)+SUMIF($N$12:$S$17,B8,$U$12:$U$17) -> 5 | J8: =(K8*3)+L8+(H8*0.001)-(I8*0.001) -> 6 | K8: =SUMPRODUCT(($G$12:$L$17=B8)*($Y$12:$Y$17=3))+SUMPRODUCT(($N$12:$S$17=B8)*($AA$12:$AA$17=3)) -> 2 | L8: =SUMPRODUCT(($G$12:$L$17=B8)*($Y$12:$Y$17=1))+SUMPRODUCT(($N$12:$S$17=B8)*($AA$12:$AA$17=1)) -> 0 | M8: =SUMPRODUCT(($G$12:$L$17=B8)*($Y$12:$Y$17=0))+SUMPRODUCT(($N$12:$S$17=B8)*($AA$12:$AA$17=0)) -> 1 | N8: =H8-I8 -> 0 | O8: =RANK(Y8,$Y$6:$Y$9,0) -> 4 | P8: RKDEO E3 | W8: =SUMIF($AF$12:$AK$17,P8,$AT$12:$AT$17)+SUMIF($AM$12:$AR$17,P8,$AV$12:$AV$17) -> 3 | X8: =SUMIF($AF$12:$AK$17,P8,$AV$12:$AV$17)+SUMIF($AM$12:$AR$17,P8,$AT$12:$AT$17) -> 5 | Y8: =(Z8*3)+AA8+(W8*0.001)-(X8*0.001) -> 0.998 | Z8: =SUMPRODUCT(($AF$12:$AK$17=P8)*($AX$12:$AX$17=3))+SUMPRODUCT(($AM$12:$AR$17=P8)*($AZ$12:$AZ$17=3)) -> 0 | AA8: =SUMPRODUCT(($AF$12:$AK$17=P8)*($AX$12:$AX$17=1))+SUMPRODUCT(($AM$12:$AR$17=P8)*($AZ$12:$AZ$17=1)) -> 1 | AB8: =SUMPRODUCT(($AF$12:$AK$17=P8)*($AX$12:$AX$17=0))+SUMPRODUCT(($AM$12:$AR$17=P8)*($AZ$12:$AZ$17=0)) -> 2 | AC8: =W8-X8 -> -2 | AD8: =RANK(AM8,$AM$6:$AM$9,0) -> 1 | AE8: RKDEO E9 | AK8: =SUMIF($G$20:$L$25,AE8,$U$20:$U$25)+SUMIF($N$20:$S$25,AE8,$W$20:$W$25) -> 11 | AL8: =SUMIF($G$20:$L$25,AE8,$W$20:$W$25)+SUMIF($N$20:$S$25,AE8,$U$20:$U$25) -> 3 | AM8: =(AN8*3)+AO8+(AK8*0.001)-(AL8*0.001) -> 9.008 | AN8: =SUMPRODUCT(($G$20:$L$25=AE8)*($Y$20:$Y$25=3))+SUMPRODUCT(($N$20:$S$25=AE8)*($AA$20:$AA$25=3)) -> 3 | AO8: =SUMPRODUCT(($G$20:$L$25=AE8)*($Y$20:$Y$25=1))+SUMPRODUCT(($N$20:$S$25=AE8)*($AA$20:$AA$25=1)) -> 0 | AP8: =SUMPRODUCT(($G$20:$L$25=AE8)*($Y$20:$Y$25=0))+SUMPRODUCT(($N$20:$S$25=AE8)*($AA$20:$AA$25=0)) -> 0 | AQ8: =AK8-AL8 -> 8 | AR8: =RANK(BA8,$BA$6:$BA$9,0) -> 1 | AS8: VFC Vlaardingen E8 | AY8: =SUMIF($AF$20:$AK$25,AS8,$AT$20:$AT$25)+SUMIF($AM$20:$AR$25,AS8,$AV$20:$AV$25) -> 7 | AZ8: =SUMIF($AF$20:$AK$25,AS8,$AV$20:$AV$25)+SUMIF($AM$20:$AR$25,AS8,$AT$20:$AT$25) -> 3 | BA8: =(BB8*3)+BC8+(AY8*0.001)-(AZ8*0.001) -> 9.004 | BB8: =SUMPRODUCT(($AF$20:$AK$25=AS8)*($AX$20:$AX$25=3))+SUMPRODUCT(($AM$20:$AR$25=AS8)*($AZ$20:$AZ$25=3)) -> 3 | BC8: =SUMPRODUCT(($AF$20:$AK$25=AS8)*($AX$20:$AX$25=1))+SUMPRODUCT(($AM$20:$AR$25=AS8)*($AZ$20:$AZ$25=1)) -> 0 | BD8: =SUMPRODUCT(($AF$20:$AK$25=AS8)*($AX$20:$AX$25=0))+SUMPRODUCT(($AM$20:$AR$25=AS8)*($AZ$20:$AZ$25=0)) -> 0 | BE8: =AY8-AZ8 -> 4
A9: =RANK(J9,$J$6:$J$9,0) -> 3 | B9: Alblasserdam E1 | H9: =SUMIF($G$12:$L$17,B9,$U$12:$U$17)+SUMIF($N$12:$S$17,B9,$W$12:$W$17) -> 8 | I9: =SUMIF($G$12:$L$17,B9,$W$12:$W$17)+SUMIF($N$12:$S$17,B9,$U$12:$U$17) -> 8 | J9: =(K9*3)+L9+(H9*0.001)-(I9*0.001) -> 3 | K9: =SUMPRODUCT(($G$12:$L$17=B9)*($Y$12:$Y$17=3))+SUMPRODUCT(($N$12:$S$17=B9)*($AA$12:$AA$17=3)) -> 1 | L9: =SUMPRODUCT(($G$12:$L$17=B9)*($Y$12:$Y$17=1))+SUMPRODUCT(($N$12:$S$17=B9)*($AA$12:$AA$17=1)) -> 0 | M9: =SUMPRODUCT(($G$12:$L$17=B9)*($Y$12:$Y$17=0))+SUMPRODUCT(($N$12:$S$17=B9)*($AA$12:$AA$17=0)) -> 2 | N9: =H9-I9 -> 0 | O9: =RANK(Y9,$Y$6:$Y$9,0) -> 3 | P9: VV GZ E3 | W9: =SUMIF($AF$12:$AK$17,P9,$AT$12:$AT$17)+SUMIF($AM$12:$AR$17,P9,$AV$12:$AV$17) -> 3 | X9: =SUMIF($AF$12:$AK$17,P9,$AV$12:$AV$17)+SUMIF($AM$12:$AR$17,P9,$AT$12:$AT$17) -> 3 | Y9: =(Z9*3)+AA9+(W9*0.001)-(X9*0.001) -> 3 | Z9: =SUMPRODUCT(($AF$12:$AK$17=P9)*($AX$12:$AX$17=3))+SUMPRODUCT(($AM$12:$AR$17=P9)*($AZ$12:$AZ$17=3)) -> 0 | AA9: =SUMPRODUCT(($AF$12:$AK$17=P9)*($AX$12:$AX$17=1))+SUMPRODUCT(($AM$12:$AR$17=P9)*($AZ$12:$AZ$17=1)) -> 3 | AB9: =SUMPRODUCT(($AF$12:$AK$17=P9)*($AX$12:$AX$17=0))+SUMPRODUCT(($AM$12:$AR$17=P9)*($AZ$12:$AZ$17=0)) -> 0 | AC9: =W9-X9 -> 0 | AD9: =RANK(AM9,$AM$6:$AM$9,0) -> 2 | AE9: scVictorie'04 E3 | AK9: =SUMIF($G$20:$L$25,AE9,$U$20:$U$25)+SUMIF($N$20:$S$25,AE9,$W$20:$W$25) -> 3 | AL9: =SUMIF($G$20:$L$25,AE9,$W$20:$W$25)+SUMIF($N$20:$S$25,AE9,$U$20:$U$25) -> 5 | AM9: =(AN9*3)+AO9+(AK9*0.001)-(AL9*0.001) -> 3.998 | AN9: =SUMPRODUCT(($G$20:$L$25=AE9)*($Y$20:$Y$25=3))+SUMPRODUCT(($N$20:$S$25=AE9)*($AA$20:$AA$25=3)) -> 1 | AO9: =SUMPRODUCT(($G$20:$L$25=AE9)*($Y$20:$Y$25=1))+SUMPRODUCT(($N$20:$S$25=AE9)*($AA$20:$AA$25=1)) -> 1 | AP9: =SUMPRODUCT(($G$20:$L$25=AE9)*($Y$20:$Y$25=0))+SUMPRODUCT(($N$20:$S$25=AE9)*($AA$20:$AA$25=0)) -> 1 | AQ9: =AK9-AL9 -> -2 | AR9: =RANK(BA9,$BA$6:$BA$9,0) -> 2 | AS9: Jodan Boys E8 | AY9: =SUMIF($AF$20:$AK$25,AS9,$AT$20:$AT$25)+SUMIF($AM$20:$AR$25,AS9,$AV$20:$AV$25) -> 5 | AZ9: =SUMIF($AF$20:$AK$25,AS9,$AV$20:$AV$25)+SUMIF($AM$20:$AR$25,AS9,$AT$20:$AT$25) -> 5 | BA9: =(BB9*3)+BC9+(AY9*0.001)-(AZ9*0.001) -> 4 | BB9: =SUMPRODUCT(($AF$20:$AK$25=AS9)*($AX$20:$AX$25=3))+SUMPRODUCT(($AM$20:$AR$25=AS9)*($AZ$20:$AZ$25=3)) -> 1 | BC9: =SUMPRODUCT(($AF$20:$AK$25=AS9)*($AX$20:$AX$25=1))+SUMPRODUCT(($AM$20:$AR$25=AS9)*($AZ$20:$AZ$25=1)) -> 1 | BD9: =SUMPRODUCT(($AF$20:$AK$25=AS9)*($AX$20:$AX$25=0))+SUMPRODUCT(($AM$20:$AR$25=AS9)*($AZ$20:$AZ$25=0)) -> 1 | BE9: =AY9-AZ9 -> 0
D11: Tijd | G11: VELD A | U11: Uitslag | Y11: Punten | AC11: Tijd | AF11: VELD B | AT11: Uitslag | AX11: Punten
D12: 14:15:00 | G12: =B6 -> Schoonhoven E1 | M12: -- | N12: =B7 -> Cabauw E1 | U12: 1 | V12: -- | W12: 2 | Y12: =IF(U12="","",IF(U12>W12,3,IF(U12=W12,1,0))) -> 0 | AA12: =IF(W12="","",IF(W12>U12,3,IF(W12=U12,1,0))) -> 3 | AC12: 14:15:00 | AF12: =P6 -> Schoonhoven E3 | AL12: -- | AM12: =P7 -> Cabauw E2 | AT12: 1 | AU12: -- | AV12: 3 | AX12: =IF(AT12="","",IF(AT12>AV12,3,IF(AT12=AV12,1,0))) -> 0 | AZ12: =IF(AV12="","",IF(AV12>AT12,3,IF(AV12=AT12,1,0))) -> 3
D13: 14:28:00 | G13: =B8 -> Jodan Boys E2 | M13: -- | N13: =B9 -> Alblasserdam E1 | U13: 2 | V13: -- | W13: 1 | Y13: =IF(U13="","",IF(U13>W13,3,IF(U13=W13,1,0))) -> 3 | AA13: =IF(W13="","",IF(W13>U13,3,IF(W13=U13,1,0))) -> 0 | AC13: 14:28:00 | AF13: =P8 -> RKDEO E3 | AL13: -- | AM13: =P9 -> VV GZ E3 | AT13: 1 | AU13: -- | AV13: 1 | AX13: =IF(AT13="","",IF(AT13>AV13,3,IF(AT13=AV13,1,0))) -> 1 | AZ13: =IF(AV13="","",IF(AV13>AT13,3,IF(AV13=AT13,1,0))) -> 1
D14: 14:41:00 | G14: =B9 -> Alblasserdam E1 | M14: -- | N14: =B6 -> Schoonhoven E1 | U14: 1 | V14: -- | W14: 2 | Y14: =IF(U14="","",IF(U14>W14,3,IF(U14=W14,1,0))) -> 0 | AA14: 3 | AC14: 14:41:00 | AF14: =P9 -> VV GZ E3 | AL14: -- | AM14: =P6 -> Schoonhoven E3 | AT14: 2 | AU14: -- | AV14: 2 | AX14: =IF(AT14="","",IF(AT14>AV14,3,IF(AT14=AV14,1,0))) -> 1 | AZ14: 1
D15: 14:54:00 | G15: =B7 -> Cabauw E1 | M15: -- | N15: =B8 -> Jodan Boys E2 | U15: 3 | V15: -- | W15: 1 | Y15: 3 | AA15: 0 | AC15: 14:54:00 | AF15: =P7 -> Cabauw E2 | AL15: -- | AM15: =P8 -> RKDEO E3 | AT15: 3 | AU15: -- | AV15: 2 | AX15: 3 | AZ15: 0
D16: 15:07:00 | G16: =B7 -> Cabauw E1 | M16: -- | N16: =B9 -> Alblasserdam E1 | U16: 4 | V16: -- | W16: 6 | Y16: 0 | AA16: 3 | AC16: 15:07:00 | AF16: =P6 -> Schoonhoven E3 | AL16: -- | AM16: =P8 -> RKDEO E3 | AT16: 1 | AU16: -- | AV16: 0 | AX16: 3 | AZ16: 0
D17: 15:20:00 | G17: =B6 -> Schoonhoven E1 | M17: -- | N17: =B8 -> Jodan Boys E2 | U17: 1 | V17: -- | W17: 2 | Y17: 0 | AA17: 3 | AC17: 15:20:00 | AF17: =P7 -> Cabauw E2 | AL17: -- | AM17: =P9 -> VV GZ E3 | AT17: 0 | AU17: -- | AV17: 0 | AX17: 1 | AZ17: 1
D19: Tijd | G19: VELD C | U19: Uitslag | Y19: Punten | AC19: Tijd | AF19: VELD D | AT19: Uitslag | AX19: Punten
D20: 14:15:00 | G20: =AE6 -> Schoonhoven E5 | M20: -- | N20: =AE7 -> Lekkerkerk E2 | U20: 0 | V20: -- | W20: 2 | Y20: =IF(U20="","",IF(U20>W20,3,IF(U20=W20,1,0))) -> 0 | AA20: =IF(W20="","",IF(W20>U20,3,IF(W20=U20,1,0))) -> 3 | AC20: 14:15:00 | AF20: =AS6 -> Schoonhoven E7 | AL20: -- | AM20: =AS7 -> Stolwijk E2 | AT20: 1 | AU20: -- | AV20: 1 | AX20: =IF(AT20="","",IF(AT20>AV20,3,IF(AT20=AV20,1,0))) -> 1 | AZ20: =IF(AV20="","",IF(AV20>AT20,3,IF(AV20=AT20,1,0))) -> 1
D21: 14:28:00 | G21: =AE8 -> RKDEO E9 | M21: -- | N21: =AE9 -> scVictorie'04 E3 | U21: 4 | V21: -- | W21: 1 | Y21: =IF(U21="","",IF(U21>W21,3,IF(U21=W21,1,0))) -> 3 | AA21: =IF(W21="","",IF(W21>U21,3,IF(W21=U21,1,0))) -> 0 | AC21: 14:28:00 | AF21: =AS8 -> VFC Vlaardingen E8 | AL21: -- | AM21: =AS9 -> Jodan Boys E8 | AT21: 3 | AU21: -- | AV21: 2 | AX21: =IF(AT21="","",IF(AT21>AV21,3,IF(AT21=AV21,1,0))) -> 3 | AZ21: =IF(AV21="","",IF(AV21>AT21,3,IF(AV21=AT21,1,0))) -> 0
D22: 14:41:00 | G22: =AE9 -> scVictorie'04 E3 | M22: -- | N22: =AE6 -> Schoonhoven E5 | U22: 1 | V22: -- | W22: 1 | Y22: =IF(U22="","",IF(U22>W22,3,IF(U22=W22,1,0))) -> 1 | AA22: 1 | AC22: 14:41:00 | AF22: =AS9 -> Jodan Boys E8 | AL22: -- | AM22: =AS6 -> Schoonhoven E7 | AT22: 2 | AU22: -- | AV22: 2 | AX22: =IF(AT22="","",IF(AT22>AV22,3,IF(AT22=AV22,1,0))) -> 1 | AZ22: 1
D23: 14:54:00 | G23: =AE7 -> Lekkerkerk E2 | M23: -- | N23: =AE8 -> RKDEO E9 | U23: 2 | V23: -- | W23: 3 | Y23: 0 | AA23: 3 | AC23: 14:54:00 | AF23: =AS7 -> Stolwijk E2 | AL23: -- | AM23: =AS8 -> VFC Vlaardingen E8 | AT23: 1 | AU23: -- | AV23: 3 | AX23: 0 | AZ23: 3
D24: 15:07:00 | G24: =AE6 -> Schoonhoven E5 | M24: -- | N24: =AE8 -> RKDEO E9 | U24: 0 | V24: -- | W24: 4 | Y24: 0 | AA24: 3 | AC24: 15:07:00 | AF24: =AS7 -> Stolwijk E2 | AL24: -- | AM24: =AS9 -> Jodan Boys E8 | AT24: 0 | AU24: -- | AV24: 1 | AX24: 0 | AZ24: 3
D25: 15:20:00 | G25: =AE9 -> scVictorie'04 E3 | M25: -- | N25: =AE7 -> Lekkerkerk E2 | U25: 1 | V25: -- | W25: 0 | Y25: 3 | AA25: 0 | AC25: 15:20:00 | AF25: =AS6 -> Schoonhoven E7 | AL25: -- | AM25: =AS8 -> VFC Vlaardingen E8 | AT25: 0 | AU25: -- | AV25: 1 | AX25: 0 | AZ25: 3
D29: Kwart finales / Halve finales / Finales op het volgende blad!

Sheet E jeugd finaleronde
D1: Kwartfinale | AW1: ='E jeugd voorronde'!AY1 -> 18 | AX1: ='E jeugd voorronde'!BJ1 -> 4 | AY1: ='E jeugd voorronde'!BK1 -> Schoonhoven E1 | AZ1: ='E jeugd voorronde'!BL1 -> 2 | BA1: ='E jeugd voorronde'!BM1 -> Schoonhoven E3 | BB1: ='E jeugd voorronde'!BN1 -> 4 | BC1: ='E jeugd voorronde'!BO1 -> Schoonhoven E5 | BD1: ='E jeugd voorronde'!BP1 -> 3 | BE1: ='E jeugd voorronde'!BQ1 -> Schoonhoven E7
AW2: ='E jeugd voorronde'!AZ1 -> 18 | AX2: ='E jeugd voorronde'!BJ2 -> 1 | AY2: ='E jeugd voorronde'!BK2 -> Cabauw E1 | AZ2: ='E jeugd voorronde'!BL2 -> 1 | BA2: ='E jeugd voorronde'!BM2 -> Cabauw E2 | BB2: ='E jeugd voorronde'!BN2 -> 3 | BC2: ='E jeugd voorronde'!BO2 -> Lekkerkerk E2 | BD2: ='E jeugd voorronde'!BP2 -> 4 | BE2: ='E jeugd voorronde'!BQ2 -> Stolwijk E2
A3: 16:30:00 | C3: A | D3: Nr 1 groep 1 | I3: Nr 2 groep 3 | Q3: 16:30:00 | S3: B | T3: Nr 1 groep 2 | Y3: Nr 2 groep 4 | AW3: ='E jeugd voorronde'!BA1 -> 18 | AX3: ='E jeugd voorronde'!BJ3 -> 2 | AY3: ='E jeugd voorronde'!BK3 -> Jodan Boys E2 | AZ3: ='E jeugd voorronde'!BL3 -> 4 | BA3: ='E jeugd voorronde'!BM3 -> RKDEO E3 | BB3: ='E jeugd voorronde'!BN3 -> 1 | BC3: ='E jeugd voorronde'!BO3 -> RKDEO E9 | BD3: ='E jeugd voorronde'!BP3 -> 1 | BE3: ='E jeugd voorronde'!BQ3 -> VFC Vlaardingen E8
D4: =IF(AW1=18,VLOOKUP(1,AX1:AY4,2,0),"") -> Cabauw E1 | H4: -- | I4: =IF(AW3=18,VLOOKUP(2,BB1:BC4,2,0),"") -> scVictorie'04 E3 | O4: - | T4: =IF(AW2=18,VLOOKUP(1,AZ1:BA4,2,0),"") -> Cabauw E2 | X4: -- | Y4: =IF(AW4=18,VLOOKUP(2,BD1:BE4,2,0),"") -> Jodan Boys E8 | AE4: - | AW4: ='E jeugd voorronde'!BB1 -> 18 | AX4: ='E jeugd voorronde'!BJ4 -> 3 | AY4: ='E jeugd voorronde'!BK4 -> Alblasserdam E1 | AZ4: ='E jeugd voorronde'!BL4 -> 3 | BA4: ='E jeugd voorronde'!BM4 -> VV GZ E3 | BB4: ='E jeugd voorronde'!BN4 -> 2 | BC4: ='E jeugd voorronde'!BO4 -> scVictorie'04 E3 | BD4: ='E jeugd voorronde'!BP4 -> 2 | BE4: ='E jeugd voorronde'!BQ4 -> Jodan Boys E8
A6: 16:30:00 | C6: C | D6: Nr 2 groep 1 | I6: Nr 1 groep 3 | Q6: 16:30:00 | S6: D | T6: Nr 2 groep 2 | Y6: Nr 1 groep 4
D7: =IF(AW3=18,VLOOKUP(2,AX1:AY4,2,0),"") -> Jodan Boys E2 | I7: =IF(AW2=18,VLOOKUP(1,BB1:BC4,2,0),"") -> RKDEO E9 | O7: - | T7: =IF(AW4=18,VLOOKUP(2,AZ1:BA4,2,0),"") -> Schoonhoven E3 | Y7: =IF(AW1=18,VLOOKUP(1,BD1:BE4,2,0),"") -> VFC Vlaardingen E8 | AE7: -
D9: Halve finale
A11: 16:45:00 | C11: E | D11: Winnaar A | I11: Winnaar B | Q11: 16:45:00 | S11: F | T11: Winnaar C | Y11: Winnaar D
D12: =IF(N4="","",IF(N4>P4,D4,I4)) ->  | I12: =IF(AD4="","",IF(AD4>AF4,T4,Y4)) ->  | O12: - | T12: =IF(N7="","",IF(N7>P7,D7,I7)) ->  | Y12: =IF(AD7="","",IF(AD7>AF7,T7,Y7)) ->  | AE12: -
D14: Finale
H16: 17:05:00 | L16: Winnaar E | Q16: Winnaar F
L17: =IF(N12="","",IF(N12>P12,D12,I12)) ->  | Q17: =IF(AD12="","",IF(AD12>AF12,T12,Y12)) ->  | V17: 1 | W17: - | X17: 2
M19: Winnaar E-toernooi
M21: =IF(V17="","",IF(V17>X17,L17,Q17)) -> 

Sheet E-GROEP-1
A1: SCHOONHOVEN TOERNOOI | O1: Scores door: OnlineExcelCursus.NL
A4: ='E jeugd voorronde'!D11 -> Tijd | B4: ='E jeugd voorronde'!E11 -> 0 | C4: ='E jeugd voorronde'!G11 -> VELD A | H4: ='E jeugd voorronde'!U11 -> Uitslag | L4: ='E jeugd voorronde'!Y11 -> Punten
A5: ='E jeugd voorronde'!D12 -> 14:15:00 | B5: ='E jeugd voorronde'!E12 -> 00:00:00 | C5: ='E jeugd voorronde'!G12 -> Schoonhoven E1 | D5: ='E jeugd voorronde'!H12 -> 0 | E5: ='E jeugd voorronde'!M12 -> -- | F5: ='E jeugd voorronde'!N12 -> Cabauw E1 | G5: ='E jeugd voorronde'!O12 -> 0 | H5: ='E jeugd voorronde'!U12 -> 1 | I5: ='E jeugd voorronde'!V12 -> -- | J5: ='E jeugd voorronde'!W12 -> 2 | L5: ='E jeugd voorronde'!Y12 -> 0 | N5: ='E jeugd voorronde'!AA12 -> 3
A6: ='E jeugd voorronde'!D13 -> 14:28:00 | B6: ='E jeugd voorronde'!E13 -> 00:00:00 | C6: ='E jeugd voorronde'!G13 -> Jodan Boys E2 | D6: ='E jeugd voorronde'!H13 -> 0 | E6: ='E jeugd voorronde'!M13 -> -- | F6: ='E jeugd voorronde'!N13 -> Alblasserdam E1 | G6: ='E jeugd voorronde'!O13 -> 0 | H6: ='E jeugd voorronde'!U13 -> 2 | I6: ='E jeugd voorronde'!V13 -> -- | J6: ='E jeugd voorronde'!W13 -> 1 | L6: ='E jeugd voorronde'!Y13 -> 3 | N6: ='E jeugd voorronde'!AA13 -> 0
A7: ='E jeugd voorronde'!D14 -> 14:41:00 | B7: ='E jeugd voorronde'!E14 -> 00:00:00 | C7: ='E jeugd voorronde'!G14 -> Alblasserdam E1 | D7: ='E jeugd voorronde'!H14 -> 0 | E7: ='E jeugd voorronde'!M14 -> -- | F7: ='E jeugd voorronde'!N14 -> Schoonhoven E1 | G7: ='E jeugd voorronde'!O14 -> 0 | H7: ='E jeugd voorronde'!U14 -> 1 | I7: ='E jeugd voorronde'!V14 -> -- | J7: ='E jeugd voorronde'!W14 -> 2 | L7: ='E jeugd voorronde'!Y14 -> 0 | N7: ='E jeugd voorronde'!AA14 -> 3
A8: ='E jeugd voorronde'!D15 -> 14:54:00 | B8: ='E jeugd voorronde'!E15 -> 00:00:00 | C8: ='E jeugd voorronde'!G15 -> Cabauw E1 | D8: ='E jeugd voorronde'!H15 -> 0 | E8: ='E jeugd voorronde'!M15 -> -- | F8: ='E jeugd voorronde'!N15 -> Jodan Boys E2 | G8: ='E jeugd voorronde'!O15 -> 0 | H8: ='E jeugd voorronde'!U15 -> 3 | I8: ='E jeugd voorronde'!V15 -> -- | J8: ='E jeugd voorronde'!W15 -> 1 | L8: ='E jeugd voorronde'!Y15 -> 3 | N8: ='E jeugd voorronde'!AA15 -> 0
A9: ='E jeugd voorronde'!D16 -> 15:07:00 | B9: ='E jeugd voorronde'!E16 -> 00:00:00 | C9: ='E jeugd voorronde'!G16 -> Cabauw E1 | D9: ='E jeugd voorronde'!H16 -> 0 | E9: ='E jeugd voorronde'!M16 -> -- | F9: ='E jeugd voorronde'!N16 -> Alblasserdam E1 | G9: ='E jeugd voorronde'!O16 -> 0 | H9: ='E jeugd voorronde'!U16 -> 4 | I9: ='E jeugd voorronde'!V16 -> -- | J9: ='E jeugd voorronde'!W16 -> 6 | L9: ='E jeugd voorronde'!Y16 -> 0 | N9: ='E jeugd voorronde'!AA16 -> 3
A10: ='E jeugd voorronde'!D17 -> 15:20:00 | B10: ='E jeugd voorronde'!E17 -> 00:00:00 | C10: ='E jeugd voorronde'!G17 -> Schoonhoven E1 | D10: ='E jeugd voorronde'!H17 -> 0 | E10: ='E jeugd voorronde'!M17 -> -- | F10: ='E jeugd voorronde'!N17 -> Jodan Boys E2 | G10: ='E jeugd voorronde'!O17 -> 0 | H10: ='E jeugd voorronde'!U17 -> 1 | I10: ='E jeugd voorronde'!V17 -> -- | J10: ='E jeugd voorronde'!W17 -> 2 | L10: ='E jeugd voorronde'!Y17 -> 0 | N10: ='E jeugd voorronde'!AA17 -> 3
A13: ='E jeugd voorronde'!A3 -> Stand | B13: ='E jeugd voorronde'!B5 -> Groep 1 | H13: ='E jeugd voorronde'!H5 -> V | I13: ='E jeugd voorronde'!I5 -> T | J13: ='E jeugd voorronde'!J5 -> P | K13: ='E jeugd voorronde'!K3 -> Gewonnen | L13: ='E jeugd voorronde'!L3 -> Gelijk | M13: ='E jeugd voorronde'!M3 -> Verloren | N13: ='E jeugd voorronde'!N3 -> Saldo
A14: ='E jeugd voorronde'!A4 -> 0 | K14: ='E jeugd voorronde'!K4 -> 0 | L14: ='E jeugd voorronde'!L4 -> 0 | M14: ='E jeugd voorronde'!M4 -> 0 | N14: ='E jeugd voorronde'!N4 -> 0
A15: ='E jeugd voorronde'!A5 -> 0 | K15: ='E jeugd voorronde'!K5 -> 0 | L15: ='E jeugd voorronde'!L5 -> 0 | M15: ='E jeugd voorronde'!M5 -> 0 | N15: ='E jeugd voorronde'!N5 -> 0
A16: ='E jeugd voorronde'!A6 -> 4 | B16: ='E jeugd voorronde'!B6 -> Schoonhoven E1 | C16: ='E jeugd voorronde'!C6 -> 0 | D16: ='E jeugd voorronde'!D6 -> 0 | E16: ='E jeugd voorronde'!E6 -> 0 | F16: ='E jeugd voorronde'!F6 -> 0 | G16: ='E jeugd voorronde'!G6 -> 0 | H16: ='E jeugd voorronde'!H6 -> 4 | I16: ='E jeugd voorronde'!I6 -> 5 | J16: ='E jeugd voorronde'!J6 -> 2.999 | K16: ='E jeugd voorronde'!K6 -> 1 | L16: ='E jeugd voorronde'!L6 -> 0 | M16: ='E jeugd voorronde'!M6 -> 2 | N16: ='E jeugd voorronde'!N6 -> -1
A17: ='E jeugd voorronde'!A7 -> 1 | B17: ='E jeugd voorronde'!B7 -> Cabauw E1 | C17: ='E jeugd voorronde'!C7 -> 0 | D17: ='E jeugd voorronde'!D7 -> 0 | E17: ='E jeugd voorronde'!E7 -> 0 | F17: ='E jeugd voorronde'!F7 -> 0 | G17: ='E jeugd voorronde'!G7 -> 0 | H17: ='E jeugd voorronde'!H7 -> 9 | I17: ='E jeugd voorronde'!I7 -> 8 | J17: ='E jeugd voorronde'!J7 -> 6.001 | K17: ='E jeugd voorronde'!K7 -> 2 | L17: ='E jeugd voorronde'!L7 -> 0 | M17: ='E jeugd voorronde'!M7 -> 1 | N17: ='E jeugd voorronde'!N7 -> 1
A18: ='E jeugd voorronde'!A8 -> 2 | B18: ='E jeugd voorronde'!B8 -> Jodan Boys E2 | C18: ='E jeugd voorronde'!C8 -> 0 | D18: ='E jeugd voorronde'!D8 -> 0 | E18: ='E jeugd voorronde'!E8 -> 0 | F18: ='E jeugd voorronde'!F8 -> 0 | G18: ='E jeugd voorronde'!G8 -> 0 | H18: ='E jeugd voorronde'!H8 -> 5 | I18: ='E jeugd voorronde'!I8 -> 5 | J18: ='E jeugd voorronde'!J8 -> 6 | K18: ='E jeugd voorronde'!K8 -> 2 | L18: ='E jeugd voorronde'!L8 -> 0 | M18: ='E jeugd voorronde'!M8 -> 1 | N18: ='E jeugd voorronde'!N8 -> 0
A19: ='E jeugd voorronde'!A9 -> 3 | B19: ='E jeugd voorronde'!B9 -> Alblasserdam E1 | C19: ='E jeugd voorronde'!C9 -> 0 | D19: ='E jeugd voorronde'!D9 -> 0 | E19: ='E jeugd voorronde'!E9 -> 0 | F19: ='E jeugd voorronde'!F9 -> 0 | G19: ='E jeugd voorronde'!G9 -> 0 | H19: ='E jeugd voorronde'!H9 -> 8 | I19: ='E jeugd voorronde'!I9 -> 8 | J19: ='E jeugd voorronde'!J9 -> 3 | K19: ='E jeugd voorronde'!K9 -> 1 | L19: ='E jeugd voorronde'!L9 -> 0 | M19: ='E jeugd voorronde'!M9 -> 2 | N19: ='E jeugd voorronde'!N9 -> 0

Sheet E-GROEP-2
A1: SCHOONHOVEN TOERNOOI | M1: Scores door: OnlineExcelCursus.NL
A4: ='E jeugd voorronde'!AC11 -> Tijd | C4: ='E jeugd voorronde'!AF11 -> VELD B | F4: ='E jeugd voorronde'!AT11 -> Uitslag | J4: ='E jeugd voorronde'!AX11 -> Punten
A5: ='E jeugd voorronde'!AC12 -> 14:15:00 | B5: ='E jeugd voorronde'!AD12 -> 00:00:00 | C5: ='E jeugd voorronde'!AF12 -> Schoonhoven E3 | D5: ='E jeugd voorronde'!AL12 -> -- | E5: ='E jeugd voorronde'!AM12 -> Cabauw E2 | F5: ='E jeugd voorronde'!AT12 -> 1 | G5: ='E jeugd voorronde'!AU12 -> -- | H5: ='E jeugd voorronde'!AV12 -> 3 | J5: ='E jeugd voorronde'!AX12 -> 0 | L5: ='E jeugd voorronde'!AZ12 -> 3
A6: ='E jeugd voorronde'!AC13 -> 14:28:00 | B6: ='E jeugd voorronde'!AD13 -> 00:00:00 | C6: ='E jeugd voorronde'!AF13 -> RKDEO E3 | D6: ='E jeugd voorronde'!AL13 -> -- | E6: ='E jeugd voorronde'!AM13 -> VV GZ E3 | F6: ='E jeugd voorronde'!AT13 -> 1 | G6: ='E jeugd voorronde'!AU13 -> -- | H6: ='E jeugd voorronde'!AV13 -> 1 | J6: ='E jeugd voorronde'!AX13 -> 1 | L6: ='E jeugd voorronde'!AZ13 -> 1
A7: ='E jeugd voorronde'!AC14 -> 14:41:00 | B7: ='E jeugd voorronde'!AD14 -> 00:00:00 | C7: ='E jeugd voorronde'!AF14 -> VV GZ E3 | D7: ='E jeugd voorronde'!AL14 -> -- | E7: ='E jeugd voorronde'!AM14 -> Schoonhoven E3 | F7: ='E jeugd voorronde'!AT14 -> 2 | G7: ='E jeugd voorronde'!AU14 -> -- | H7: ='E jeugd voorronde'!AV14 -> 2 | J7: ='E jeugd voorronde'!AX14 -> 1 | L7: ='E jeugd voorronde'!AZ14 -> 1
A8: ='E jeugd voorronde'!AC15 -> 14:54:00 | B8: ='E jeugd voorronde'!AD15 -> 00:00:00 | C8: ='E jeugd voorronde'!AF15 -> Cabauw E2 | D8: ='E jeugd voorronde'!AL15 -> -- | E8: ='E jeugd voorronde'!AM15 -> RKDEO E3 | F8: ='E jeugd voorronde'!AT15 -> 3 | G8: ='E jeugd voorronde'!AU15 -> -- | H8: ='E jeugd voorronde'!AV15 -> 2 | J8: ='E jeugd voorronde'!AX15 -> 3 | L8: ='E jeugd voorronde'!AZ15 -> 0
A9: ='E jeugd voorronde'!AC16 -> 15:07:00 | B9: ='E jeugd voorronde'!AD16 -> 00:00:00 | C9: ='E jeugd voorronde'!AF16 -> Schoonhoven E3 | D9: ='E jeugd voorronde'!AL16 -> -- | E9: ='E jeugd voorronde'!AM16 -> RKDEO E3 | F9: ='E jeugd voorronde'!AT16 -> 1 | G9: ='E jeugd voorronde'!AU16 -> -- | H9: ='E jeugd voorronde'!AV16 -> 0 | J9: ='E jeugd voorronde'!AX16 -> 3 | L9: ='E jeugd voorronde'!AZ16 -> 0
A10: ='E jeugd voorronde'!AC17 -> 15:20:00 | B10: ='E jeugd voorronde'!AD17 -> 00:00:00 | C10: ='E jeugd voorronde'!AF17 -> Cabauw E2 | D10: ='E jeugd voorronde'!AL17 -> -- | E10: ='E jeugd voorronde'!AM17 -> VV GZ E3 | F10: ='E jeugd voorronde'!AT17 -> 0 | G10: ='E jeugd voorronde'!AU17 -> -- | H10: ='E jeugd voorronde'!AV17 -> 0 | J10: ='E jeugd voorronde'!AX17 -> 1 | L10: ='E jeugd voorronde'!AZ17 -> 1
A14: ='E jeugd voorronde'!O3 -> Stand | B14: ='E jeugd voorronde'!P5 -> Groep 2 | F14: ='E jeugd voorronde'!W5 -> V | G14: ='E jeugd voorronde'!X5 -> T | H14: ='E jeugd voorronde'!Y5 -> P | I14: ='E jeugd voorronde'!Z3 -> Gewonnen | J14: ='E jeugd voorronde'!AA3 -> Gelijk | K14: ='E jeugd voorronde'!AB3 -> Verloren | L14: ='E jeugd voorronde'!AC3 -> Saldo
A15: ='E jeugd voorronde'!O4 -> 0 | I15: ='E jeugd voorronde'!Z4 -> 0 | J15: ='E jeugd voorronde'!AA4 -> 0 | K15: ='E jeugd voorronde'!AB4 -> 0 | L15: ='E jeugd voorronde'!AC4 -> 0
A16: ='E jeugd voorronde'!O5 -> 0 | I16: ='E jeugd voorronde'!Z5 -> 0 | J16: ='E jeugd voorronde'!AA5 -> 0 | K16: ='E jeugd voorronde'!AB5 -> 0 | L16: ='E jeugd voorronde'!AC5 -> 0
A17: ='E jeugd voorronde'!O6 -> 2 | B17: ='E jeugd voorronde'!P6 -> Schoonhoven E3 | F17: ='E jeugd voorronde'!W6 -> 4 | G17: ='E jeugd voorronde'!X6 -> 5 | H17: ='E jeugd voorronde'!Y6 -> 3.999 | I17: ='E jeugd voorronde'!Z6 -> 1 | J17: ='E jeugd voorronde'!AA6 -> 1 | K17: ='E jeugd voorronde'!AB6 -> 1 | L17: ='E jeugd voorronde'!AC6 -> -1
A18: ='E jeugd voorronde'!O7 -> 1 | B18: ='E jeugd voorronde'!P7 -> Cabauw E2 | F18: ='E jeugd voorronde'!W7 -> 6 | G18: ='E jeugd voorronde'!X7 -> 3 | H18: ='E jeugd voorronde'!Y7 -> 7.003 | I18: ='E jeugd voorronde'!Z7 -> 2 | J18: ='E jeugd voorronde'!AA7 -> 1 | K18: ='E jeugd voorronde'!AB7 -> 0 | L18: ='E jeugd voorronde'!AC7 -> 3
A19: ='E jeugd voorronde'!O8 -> 4 | B19: ='E jeugd voorronde'!P8 -> RKDEO E3 | F19: ='E jeugd voorronde'!W8 -> 3 | G19: ='E jeugd voorronde'!X8 -> 5 | H19: ='E jeugd voorronde'!Y8 -> 0.998 | I19: ='E jeugd voorronde'!Z8 -> 0 | J19: ='E jeugd voorronde'!AA8 -> 1 | K19: ='E jeugd voorronde'!AB8 -> 2 | L19: ='E jeugd voorronde'!AC8 -> -2
A20: ='E jeugd voorronde'!O9 -> 3 | B20: ='E jeugd voorronde'!P9 -> VV GZ E3 | F20: ='E jeugd voorronde'!W9 -> 3 | G20: ='E jeugd voorronde'!X9 -> 3 | H20: ='E jeugd voorronde'!Y9 -> 3 | I20: ='E jeugd voorronde'!Z9 -> 0 | J20: ='E jeugd voorronde'!AA9 -> 3 | K20: ='E jeugd voorronde'!AB9 -> 0 | L20: ='E jeugd voorronde'!AC9 -> 0

Sheet E-GROEP-3
A1: SCHOONHOVEN TOERNOOI | M1: Scores door: OnlineExcelCursus.NL
A4: ='E jeugd voorronde'!D19 -> Tijd | B4: ='E jeugd voorronde'!E19 -> 0 | C4: ='E jeugd voorronde'!G19 -> VELD C | F4: ='E jeugd voorronde'!U19 -> Uitslag | G4: ='E jeugd voorronde'!V19 -> 0 | H4: ='E jeugd voorronde'!W19 -> 0 | J4: ='E jeugd voorronde'!Y19 -> Punten
A5: ='E jeugd voorronde'!D20 -> 14:15:00 | B5: ='E jeugd voorronde'!E20 -> 00:00:00 | C5: ='E jeugd voorronde'!G20 -> Schoonhoven E5 | D5: ='E jeugd voorronde'!M20 -> -- | E5: ='E jeugd voorronde'!N20 -> Lekkerkerk E2 | F5: ='E jeugd voorronde'!U20 -> 0 | G5: ='E jeugd voorronde'!V20 -> -- | H5: ='E jeugd voorronde'!W20 -> 2 | J5: ='E jeugd voorronde'!Y20 -> 0 | L5: ='E jeugd voorronde'!AA20 -> 3
A6: ='E jeugd voorronde'!D21 -> 14:28:00 | B6: ='E jeugd voorronde'!E21 -> 00:00:00 | C6: ='E jeugd voorronde'!G21 -> RKDEO E9 | D6: ='E jeugd voorronde'!M21 -> -- | E6: ='E jeugd voorronde'!N21 -> scVictorie'04 E3 | F6: ='E jeugd voorronde'!U21 -> 4 | G6: ='E jeugd voorronde'!V21 -> -- | H6: ='E jeugd voorronde'!W21 -> 1 | J6: ='E jeugd voorronde'!Y21 -> 3 | L6: ='E jeugd voorronde'!AA21 -> 0
A7: ='E jeugd voorronde'!D22 -> 14:41:00 | B7: ='E jeugd voorronde'!E22 -> 00:00:00 | C7: ='E jeugd voorronde'!G22 -> scVictorie'04 E3 | D7: ='E jeugd voorronde'!M22 -> -- | E7: ='E jeugd voorronde'!N22 -> Schoonhoven E5 | F7: ='E jeugd voorronde'!U22 -> 1 | G7: ='E jeugd voorronde'!V22 -> -- | H7: ='E jeugd voorronde'!W22 -> 1 | J7: ='E jeugd voorronde'!Y22 -> 1 | L7: ='E jeugd voorronde'!AA22 -> 1
A8: ='E jeugd voorronde'!D23 -> 14:54:00 | B8: ='E jeugd voorronde'!E23 -> 00:00:00 | C8: ='E jeugd voorronde'!G23 -> Lekkerkerk E2 | D8: ='E jeugd voorronde'!M23 -> -- | E8: ='E jeugd voorronde'!N23 -> RKDEO E9 | F8: ='E jeugd voorronde'!U23 -> 2 | G8: ='E jeugd voorronde'!V23 -> -- | H8: ='E jeugd voorronde'!W23 -> 3 | J8: ='E jeugd voorronde'!Y23 -> 0 | L8: ='E jeugd voorronde'!AA23 -> 3
A9: ='E jeugd voorronde'!D24 -> 15:07:00 | B9: ='E jeugd voorronde'!E24 -> 00:00:00 | C9: ='E jeugd voorronde'!G24 -> Schoonhoven E5 | D9: ='E jeugd voorronde'!M24 -> -- | E9: ='E jeugd voorronde'!N24 -> RKDEO E9 | F9: ='E jeugd voorronde'!U24 -> 0 | G9: ='E jeugd voorronde'!V24 -> -- | H9: ='E jeugd voorronde'!W24 -> 4 | J9: ='E jeugd voorronde'!Y24 -> 0 | L9: ='E jeugd voorronde'!AA24 -> 3
A10: ='E jeugd voorronde'!D25 -> 15:20:00 | B10: ='E jeugd voorronde'!E25 -> 00:00:00 | C10: ='E jeugd voorronde'!G25 -> scVictorie'04 E3 | D10: ='E jeugd voorronde'!M25 -> -- | E10: ='E jeugd voorronde'!N25 -> Lekkerkerk E2 | F10: ='E jeugd voorronde'!U25 -> 1 | G10: ='E jeugd voorronde'!V25 -> -- | H10: ='E jeugd voorronde'!W25 -> 0 | J10: ='E jeugd voorronde'!Y25 -> 3 | L10: ='E jeugd voorronde'!AA25 -> 0
A13: ='E jeugd voorronde'!AD3 -> Stand | B13: ='E jeugd voorronde'!AE5 -> Groep 3 | F13: ='E jeugd voorronde'!AK5 -> V | G13: ='E jeugd voorronde'!AL5 -> T | H13: ='E jeugd voorronde'!AM5 -> P | I13: ='E jeugd voorronde'!AN3 -> Gewonnen | J13: ='E jeugd voorronde'!AO3 -> Gelijk | K13: ='E jeugd voorronde'!AP3 -> Verloren | L13: ='E jeugd voorronde'!AQ3 -> Saldo
A14: ='E jeugd voorronde'!AD4 -> 0 | I14: ='E jeugd voorronde'!AN4 -> 0 | J14: ='E jeugd voorronde'!AO4 -> 0 | K14: ='E jeugd voorronde'!AP4 -> 0 | L14: ='E jeugd voorronde'!AQ4 -> 0
A15: ='E jeugd voorronde'!AD5 -> 0 | I15: ='E jeugd voorronde'!AN5 -> 0 | J15: ='E jeugd voorronde'!AO5 -> 0 | K15: ='E jeugd voorronde'!AP5 -> 0 | L15: ='E jeugd voorronde'!AQ5 -> 0
A16: ='E jeugd voorronde'!AD6 -> 4 | B16: ='E jeugd voorronde'!AE6 -> Schoonhoven E5 | F16: ='E jeugd voorronde'!AK6 -> 1 | G16: ='E jeugd voorronde'!AL6 -> 7 | H16: ='E jeugd voorronde'!AM6 -> 0.994 | I16: ='E jeugd voorronde'!AN6 -> 0 | J16: ='E jeugd voorronde'!AO6 -> 1 | K16: ='E jeugd voorronde'!AP6 -> 2 | L16: ='E jeugd voorronde'!AQ6 -> -6
A17: ='E jeugd voorronde'!AD7 -> 3 | B17: ='E jeugd voorronde'!AE7 -> Lekkerkerk E2 | F17: ='E jeugd voorronde'!AK7 -> 4 | G17: ='E jeugd voorronde'!AL7 -> 4 | H17: ='E jeugd voorronde'!AM7 -> 3 | I17: ='E jeugd voorronde'!AN7 -> 1 | J17: ='E jeugd voorronde'!AO7 -> 0 | K17: ='E jeugd voorronde'!AP7 -> 2 | L17: ='E jeugd voorronde'!AQ7 -> 0
A18: ='E jeugd voorronde'!AD8 -> 1 | B18: ='E jeugd voorronde'!AE8 -> RKDEO E9 | F18: ='E jeugd voorronde'!AK8 -> 11 | G18: ='E jeugd voorronde'!AL8 -> 3 | H18: ='E jeugd voorronde'!AM8 -> 9.008 | I18: ='E jeugd voorronde'!AN8 -> 3 | J18: ='E jeugd voorronde'!AO8 -> 0 | K18: ='E jeugd voorronde'!AP8 -> 0 | L18: ='E jeugd voorronde'!AQ8 -> 8
A19: ='E jeugd voorronde'!AD9 -> 2 | B19: ='E jeugd voorronde'!AE9 -> scVictorie'04 E3 | F19: ='E jeugd voorronde'!AK9 -> 3 | G19: ='E jeugd voorronde'!AL9 -> 5 | H19: ='E jeugd voorronde'!AM9 -> 3.998 | I19: ='E jeugd voorronde'!AN9 -> 1 | J19: ='E jeugd voorronde'!AO9 -> 1 | K19: ='E jeugd voorronde'!AP9 -> 1 | L19: ='E jeugd voorronde'!AQ9 -> -2

Sheet E-GROEP-4
A1: SCHOONHOVEN TOERNOOI | M1: Scores door: OnlineExcelCursus.NL
A4: ='E jeugd voorronde'!AC19 -> Tijd | B4: ='E jeugd voorronde'!AD19 -> 0 | C4: ='E jeugd voorronde'!AF19 -> VELD D | F4: ='E jeugd voorronde'!AT19 -> Uitslag | G4: ='E jeugd voorronde'!AU19 -> 0 | H4: ='E jeugd voorronde'!AV19 -> 0 | J4: ='E jeugd voorronde'!AX19 -> Punten | K4: ='E jeugd voorronde'!AY19 -> 0 | L4: ='E jeugd voorronde'!AZ19 -> 0
A5: ='E jeugd voorronde'!AC20 -> 14:15:00 | B5: ='E jeugd voorronde'!AD20 -> 00:00:00 | C5: ='E jeugd voorronde'!AF20 -> Schoonhoven E7 | D5: ='E jeugd voorronde'!AL20 -> -- | E5: ='E jeugd voorronde'!AM20 -> Stolwijk E2 | F5: ='E jeugd voorronde'!AT20 -> 1 | G5: ='E jeugd voorronde'!AU20 -> -- | H5: ='E jeugd voorronde'!AV20 -> 1 | J5: ='E jeugd voorronde'!Y20 -> 0 | L5: ='E jeugd voorronde'!AA20 -> 3
A6: ='E jeugd voorronde'!AC21 -> 14:28:00 | B6: ='E jeugd voorronde'!AD21 -> 00:00:00 | C6: ='E jeugd voorronde'!AF21 -> VFC Vlaardingen E8 | D6: ='E jeugd voorronde'!AL21 -> -- | E6: ='E jeugd voorronde'!AM21 -> Jodan Boys E8 | F6: ='E jeugd voorronde'!AT21 -> 3 | G6: ='E jeugd voorronde'!AU21 -> -- | H6: ='E jeugd voorronde'!AV21 -> 2 | J6: ='E jeugd voorronde'!Y21 -> 3 | L6: ='E jeugd voorronde'!AA21 -> 0
A7: ='E jeugd voorronde'!AC22 -> 14:41:00 | B7: ='E jeugd voorronde'!AD22 -> 00:00:00 | C7: ='E jeugd voorronde'!AF22 -> Jodan Boys E8 | D7: ='E jeugd voorronde'!AL22 -> -- | E7: ='E jeugd voorronde'!AM22 -> Schoonhoven E7 | F7: ='E jeugd voorronde'!AT22 -> 2 | G7: ='E jeugd voorronde'!AU22 -> -- | H7: ='E jeugd voorronde'!AV22 -> 2 | J7: ='E jeugd voorronde'!Y22 -> 1 | L7: ='E jeugd voorronde'!AA22 -> 1
A8: ='E jeugd voorronde'!AC23 -> 14:54:00 | B8: ='E jeugd voorronde'!AD23 -> 00:00:00 | C8: ='E jeugd voorronde'!AF23 -> Stolwijk E2 | D8: ='E jeugd voorronde'!AL23 -> -- | E8: ='E jeugd voorronde'!AM23 -> VFC Vlaardingen E8 | F8: ='E jeugd voorronde'!AT23 -> 1 | G8: ='E jeugd voorronde'!AU23 -> -- | H8: ='E jeugd voorronde'!AV23 -> 3 | J8: ='E jeugd voorronde'!Y23 -> 0 | L8: ='E jeugd voorronde'!AA23 -> 3
A9: ='E jeugd voorronde'!AC24 -> 15:07:00 | B9: ='E jeugd voorronde'!AD24 -> 00:00:00 | C9: ='E jeugd voorronde'!AF24 -> Stolwijk E2 | D9: ='E jeugd voorronde'!AL24 -> -- | E9: ='E jeugd voorronde'!AM24 -> Jodan Boys E8 | F9: ='E jeugd voorronde'!AT24 -> 0 | G9: ='E jeugd voorronde'!AU24 -> -- | H9: ='E jeugd voorronde'!AV24 -> 1 | J9: ='E jeugd voorronde'!Y24 -> 0 | L9: ='E jeugd voorronde'!AA24 -> 3
A10: ='E jeugd voorronde'!AC25 -> 15:20:00 | B10: ='E jeugd voorronde'!AD25 -> 00:00:00 | C10: ='E jeugd voorronde'!AF25 -> Schoonhoven E7 | D10: ='E jeugd voorronde'!AL25 -> -- | E10: ='E jeugd voorronde'!AM25 -> VFC Vlaardingen E8 | F10: ='E jeugd voorronde'!AT25 -> 0 | G10: ='E jeugd voorronde'!AU25 -> -- | H10: ='E jeugd voorronde'!AV25 -> 1 | J10: ='E jeugd voorronde'!Y25 -> 3 | L10: ='E jeugd voorronde'!AA25 -> 0
A13: ='E jeugd voorronde'!AR3 -> Stand | B13: ='E jeugd voorronde'!AS5 -> Groep 4 | F13: ='E jeugd voorronde'!AY5 -> V | G13: ='E jeugd voorronde'!AZ5 -> T | H13: ='E jeugd voorronde'!BA5 -> P | I13: ='E jeugd voorronde'!BB3 -> Gewonnen | J13: ='E jeugd voorronde'!BC3 -> Gelijk | K13: ='E jeugd voorronde'!BD3 -> Verloren | L13: ='E jeugd voorronde'!BE3 -> Saldo
A14: ='E jeugd voorronde'!AR4 -> 0 | I14: ='E jeugd voorronde'!BB4 -> 0 | J14: ='E jeugd voorronde'!BC4 -> 0 | K14: ='E jeugd voorronde'!BD4 -> 0 | L14: ='E jeugd voorronde'!BE4 -> 0
A15: ='E jeugd voorronde'!AR5 -> 0 | I15: ='E jeugd voorronde'!BB5 -> 0 | J15: ='E jeugd voorronde'!BC5 -> 0 | K15: ='E jeugd voorronde'!BD5 -> 0 | L15: ='E jeugd voorronde'!BE5 -> 0
A16: ='E jeugd voorronde'!AR6 -> 3 | B16: ='E jeugd voorronde'!AS6 -> Schoonhoven E7 | F16: ='E jeugd voorronde'!AY6 -> 3 | G16: ='E jeugd voorronde'!AZ6 -> 4 | H16: ='E jeugd voorronde'!BA6 -> 1.999 | I16: ='E jeugd voorronde'!BB6 -> 0 | J16: ='E jeugd voorronde'!BC6 -> 2 | K16: ='E jeugd voorronde'!BD6 -> 1 | L16: ='E jeugd voorronde'!BE6 -> -1
A17: ='E jeugd voorronde'!AR7 -> 4 | B17: ='E jeugd voorronde'!AS7 -> Stolwijk E2 | F17: ='E jeugd voorronde'!AY7 -> 2 | G17: ='E jeugd voorronde'!AZ7 -> 5 | H17: ='E jeugd voorronde'!BA7 -> 0.997 | I17: ='E jeugd voorronde'!BB7 -> 0 | J17: ='E jeugd voorronde'!BC7 -> 1 | K17: ='E jeugd voorronde'!BD7 -> 2 | L17: ='E jeugd voorronde'!BE7 -> -3
A18: ='E jeugd voorronde'!AR8 -> 1 | B18: ='E jeugd voorronde'!AS8 -> VFC Vlaardingen E8 | F18: ='E jeugd voorronde'!AY8 -> 7 | G18: ='E jeugd voorronde'!AZ8 -> 3 | H18: ='E jeugd voorronde'!BA8 -> 9.004 | I18: ='E jeugd voorronde'!BB8 -> 3 | J18: ='E jeugd voorronde'!BC8 -> 0 | K18: ='E jeugd voorronde'!BD8 -> 0 | L18: ='E jeugd voorronde'!BE8 -> 4
A19: ='E jeugd voorronde'!AR9 -> 2 | B19: ='E jeugd voorronde'!AS9 -> Jodan Boys E8 | F19: ='E jeugd voorronde'!AY9 -> 5 | G19: ='E jeugd voorronde'!AZ9 -> 5 | H19: ='E jeugd voorronde'!BA9 -> 4 | I19: ='E jeugd voorronde'!BB9 -> 1 | J19: ='E jeugd voorronde'!BC9 -> 1 | K19: ='E jeugd voorronde'!BD9 -> 1 | L19: ='E jeugd voorronde'!BE9 -> 0

Sheet Blad1
